bitfinex/quotes_BTCUSD_20250601
["timestamp","ask_amount","ask_price","bid_price","bid_amount"]
[1748765755974,0.86771941,104330.0,104320.0,0.0694217]
[1748765756371,0.86771941,104330.0,104320.0,0.04247498]
[1748765756569,0.86771941,104330.0,104320.0,0.05145722]
[1748765756768,0.86771941,104330.0,104320.0,0.04247498]
[1748765757179,0.86771941,104330.0,104320.0,0.06942179]
[1748765757782,0.86771941,104330.0,104320.0,0.06942168]
[1748765757961,0.86771941,104330.0,104320.0,0.06942147]
[1748765758599,0.86771941,104330.0,104320.0,0.06942161]
[1748765759424,0.86771941,104330.0,104320.0,0.06942134]
[1748765759782,0.86771941,104330.0,104320.0,0.06942136]
[1748765759982,0.86771941,104330.0,104320.0,0.06942122]
[1748765760600,0.86771941,104330.0,104320.0,0.06942129]
[1748765761580,0.93532966,104330.0,104320.0,0.06942129]
[1748765761820,1.03118396,104330.0,104320.0,0.06043919]
[1748765762030,1.03118396,104330.0,104320.0,0.04247498]
[1748765762444,1.03118396,104330.0,104320.0,0.06942138]
[1748765762686,1.03118396,104330.0,104320.0,0.05145711]
[1748765763085,1.03118396,104330.0,104320.0,0.06043927]
[1748765763287,1.03118396,104330.0,104320.0,0.04247498]
[1748765764088,1.03118396,104330.0,104320.0,0.06043928]
[1748765764332,1.03118396,104330.0,104320.0,0.04247498]
[1748765764475,1.03118396,104330.0,104320.0,0.06043923]
[1748765764682,1.03118396,104330.0,104320.0,0.04247498]
[1748765765109,1.03118396,104330.0,104320.0,0.06043944]
[1748765765545,1.03118396,104330.0,104320.0,0.04247498]
[1748765765716,1.03118396,104330.0,104320.0,0.06942205]
[1748765765917,1.03118396,104330.0,104320.0,0.04247498]
[1748765766766,1.03118396,104330.0,104320.0,0.05145748]
[1748765766971,1.03118396,104330.0,104320.0,0.07962047]
[1748765767150,1.03118396,104330.0,104320.0,0.06165498]
[1748765767361,1.04572481,104330.0,104320.0,0.06165498]
[1748765767576,1.07451081,104330.0,104320.0,0.07063843]
[1748765767775,1.07451081,104330.0,104320.0,0.09759086]
[1748765767994,1.07451081,104330.0,104320.0,0.08860663]
[1748765768214,1.07451081,104330.0,104320.0,0.10657509]
[1748765768625,1.00690056,104330.0,104320.0,0.10657509]
[1748765768896,1.00690056,104330.0,104320.0,0.08331187]
[1748765769070,1.00690056,104330.0,104320.0,0.11023396]
[1748765769274,1.00690056,104330.0,104320.0,0.13715593]
[1748765769701,1.00690056,104330.0,104320.0,0.13715594]
[1748765770483,1.50220056,104330.0,104320.0,0.13715483]
[1748765770686,1.50220056,104330.0,104320.0,0.13715485]
[1748765770889,1.50220056,104330.0,104320.0,0.13715488]
[1748765771107,1.50220056,104330.0,104320.0,0.13714285]
[1748765771700,1.50220056,104330.0,104320.0,0.13714279]
[1748765771932,1.19505971,104330.0,104320.0,0.13714279]
[1748765772138,1.25583371,104330.0,104320.0,0.13714279]
[1748765772338,1.54899371,104330.0,104320.0,0.13713982]
[1748765772561,1.54899371,104330.0,104320.0,0.11920254]
[1748765772773,1.54899371,104330.0,104320.0,0.13713952]
[1748765772989,1.54899371,104330.0,104320.0,0.13713902]
[1748765773213,1.16627371,104330.0,104320.0,0.13713905]
[1748765773443,1.45947371,104330.0,104320.0,0.1102339]
[1748765773666,1.45947371,104330.0,104320.0,0.11920201]
[1748765773882,1.45947371,104330.0,104320.0,0.1371382]
[1748765774237,1.45947371,104330.0,104320.0,0.13713811]
[1748765774403,1.45947371,104330.0,104320.0,0.13713805]
[1748765774600,1.45947371,104330.0,104320.0,0.1102339]
[1748765775007,1.45947371,104330.0,104320.0,0.13713659]
[1748765775445,1.45947371,104330.0,104320.0,0.13713757]
[1748765775803,1.45947371,104330.0,104320.0,0.12817001]
[1748765776017,1.45947371,104330.0,104320.0,0.13713759]
[1748765776221,1.45947371,104330.0,104320.0,0.12816909]
[1748765776422,1.45947371,104330.0,104320.0,0.13713668]
[1748765776621,1.45947371,104330.0,104320.0,0.13713664]
[1748765776841,1.45947371,104330.0,104320.0,0.11920098]
[1748765777008,1.45947371,104330.0,104320.0,0.13713514]
[1748765778032,1.45947371,104330.0,104320.0,0.13713519]
[1748765778237,1.16627371,104330.0,104320.0,0.33843897]
[1748765778468,1.45939371,104330.0,104320.0,0.46051354]
[1748765778701,1.45939371,104330.0,104320.0,0.46051269]
[1748765778987,1.45939371,104330.0,104320.0,0.13713179]
[1748765779432,1.47469371,104330.0,104320.0,0.13713179]
[1748765779634,1.47469371,104330.0,104320.0,0.15263179]
[1748765779898,1.47469371,104330.0,104320.0,0.13713179]
[1748765780096,1.49049371,104330.0,104320.0,0.13713204]
[1748765780327,1.11110428,104330.0,104320.0,0.31091736]
[1748765780546,0.62538888,104330.0,104320.0,0.67139861]
[1748765780764,0.62538888,104330.0,104320.0,0.67139874]
[1748765781136,0.61580428,104330.0,104320.0,0.68098435]
[1748765781343,0.61580428,104330.0,104320.0,0.68098463]
[1748765781757,0.61580428,104330.0,104320.0,0.65221912]
[1748765782188,0.61580428,104330.0,104320.0,0.6342872]
[1748765782326,0.61580428,104330.0,104320.0,0.64325248]
[1748765782574,0.38342,104330.0,104320.0,0.64449269]
[1748765782813,0.38342,104330.0,104320.0,0.6779223]
[1748765783037,0.38342,104330.0,104320.0,0.69262036]
[1748765783257,0.39300414,104330.0,104320.0,0.67469269]
[1748765783914,0.39300414,104330.0,104320.0,0.69261914]
[1748765784172,0.39300414,104330.0,104320.0,0.67469269]
[1748765784610,0.40258837,104330.0,104320.0,0.66895594]
[1748765784827,0.40258837,104330.0,104320.0,0.66241864]
[1748765785049,0.40258837,104330.0,104320.0,0.68034405]
[1748765785346,0.39300414,104330.0,104320.0,0.68034405]
[1748765785583,0.40258837,104330.0,104320.0,0.68034405]
[1748765786001,0.40258837,104330.0,104320.0,0.67137414]
[1748765786256,0.40258837,104330.0,104320.0,0.68033324]
[1748765786693,0.39300423,104330.0,104320.0,0.65345594]
[1748765787274,0.39300423,104330.0,104320.0,0.66241504]
[1748765787453,0.39300423,104330.0,104320.0,0.68033325]
[1748765788047,0.39300423,104330.0,104320.0,0.68033039]
[1748765788274,0.40258855,104330.0,104320.0,0.67136842]
[1748765788691,0.40258855,104330.0,104320.0,0.68032466]
[1748765789474,0.40258855,104330.0,104320.0,0.68032163]
[1748765789701,0.39300423,104330.0,104320.0,0.68032163]
[1748765789908,0.39300423,104330.0,104320.0,0.68031185]
[1748765790115,0.39300423,104330.0,104320.0,0.66240791]
[1748765790322,0.40258864,104330.0,104320.0,0.69581185]
[1748765790541,0.38342,104330.0,104320.0,0.69581185]
[1748765790760,0.40258855,104330.0,104320.0,0.69581182]
[1748765790990,0.41217306,104330.0,104320.0,0.69581083]
[1748765791209,0.40258855,104330.0,104320.0,0.69580688]
[1748765791631,0.40258855,104330.0,104320.0,0.67790625]
[1748765791835,0.40258855,104330.0,104320.0,0.69580702]
[1748765792057,0.40258855,104330.0,104320.0,0.66895594]
[1748765792265,0.41217306,104330.0,104320.0,0.68030712]
[1748765792697,0.40258855,104330.0,104320.0,0.68030774]
[1748765793111,0.40258855,104330.0,104320.0,0.97390774]
[1748765793547,0.40258855,104330.0,104320.0,0.97390775]
[1748765794177,0.40258855,104330.0,104320.0,0.97390869]
[1748765794366,0.40258855,104330.0,104320.0,0.9739087]
[1748765794583,0.39300414,104330.0,104320.0,0.9739087]
[1748765794789,0.40258855,104330.0,104320.0,0.9739087]
[1748765794986,0.40258855,104330.0,104320.0,0.96495849]
[1748765795163,0.40258855,104330.0,104320.0,0.97390975]
[1748765795372,0.42175784,104330.0,104320.0,0.97390975]
[1748765796015,0.42175775,104330.0,104320.0,0.97390975]
[1748765796230,0.42175775,104330.0,104320.0,0.97390976]
[1748765796611,0.42175775,104330.0,104320.0,0.97390975]
[1748765796841,0.41217306,104330.0,104320.0,0.97390975]
[1748765797015,0.42175775,104330.0,104320.0,0.97390975]
[1748765797221,0.43134253,104330.0,104320.0,0.97390975]
[1748765797489,0.43134253,104330.0,104320.0,0.95600721]
[1748765797619,0.42175775,104330.0,104320.0,0.97391052]
[1748765797842,0.42175775,104330.0,104320.0,0.97391219]
[1748765798056,0.42175775,104330.0,104320.0,0.97391218]
[1748765798253,0.43134253,104330.0,104320.0,0.97391217]
[1748765798865,0.43134253,104330.0,104320.0,0.65054231]
[1748765799213,0.43134253,104330.0,104320.0,0.97392577]
[1748765799425,0.43134253,104330.0,104320.0,0.95601254]
[1748765799574,0.43134253,104330.0,104320.0,0.96496912]
[1748765799788,0.43134253,104330.0,104320.0,0.94705594]
[1748765800105,0.43134253,104330.0,104320.0,0.96496921]
[1748765800308,0.43134253,104330.0,104320.0,0.95601257]
[1748765800523,0.43134253,104330.0,104320.0,0.96496923]
[1748765800700,0.43134253,104330.0,104320.0,0.97392588]
[1748765801104,0.43134253,104330.0,104320.0,0.95601259]
[1748765801310,0.42175775,104330.0,104320.0,0.95601259]
[1748765801799,0.43134253,104330.0,104320.0,0.97393703]
[1748765801967,0.43134253,104330.0,104320.0,0.97393702]
[1748765802166,0.43134253,104330.0,104320.0,0.95601259]
[1748765802697,0.43134253,104330.0,104320.0,0.95589929]
[1748765803089,0.42175775,104330.0,104320.0,0.95589929]
[1748765803294,0.41217306,104330.0,104320.0,0.9791023]
[1748765803491,0.42175775,104330.0,104320.0,0.9791023]
[1748765803834,0.43134253,104330.0,104320.0,0.95220982]
[1748765803975,0.43134326,104330.0,104320.0,0.95220982]
[1748765804990,0.41217361,104330.0,104320.0,0.95220982]
[1748765805425,0.42175839,104330.0,104320.0,0.97911677]
[1748765806030,0.43134326,104330.0,104320.0,0.97911677]
[1748765806227,0.43134326,104330.0,104320.0,0.96117925]
[1748765806459,0.43134326,104330.0,104320.0,0.97911811]
[1748765806808,0.43134326,104330.0,104320.0,0.99829811]
[1748765806998,0.43134326,104330.0,104320.0,1.0019836]
[1748765807216,0.43134326,104330.0,104320.0,1.00198823]
[1748765807437,0.43134326,104330.0,104320.0,1.00199781]
[1748765807651,0.43134326,104330.0,104320.0,0.99302345]
[1748765807877,0.43134326,104330.0,104320.0,1.00199781]
[1748765808150,0.43134326,104330.0,104320.0,1.00199839]
[1748765808574,0.44654326,104330.0,104320.0,1.00199839]
[1748765809021,0.44654326,104330.0,104320.0,1.0019992]
[1748765809503,0.44654326,104330.0,104320.0,1.00200709]
[1748765809709,0.44654326,104330.0,104320.0,0.99302983]
[1748765809909,0.44654326,104330.0,104320.0,1.00200728]
[1748765810088,0.44654326,104330.0,104320.0,1.00200767]
[1748765810725,0.44654326,104330.0,104320.0,1.00200801]
[1748765811366,0.44654326,104330.0,104320.0,1.00201748]
[1748765811569,0.44654326,104330.0,104320.0,1.00202239]
[1748765812177,0.44654326,104330.0,104320.0,1.00202236]
[1748765812408,0.44654326,104330.0,104320.0,1.00202234]
[1748765813601,0.43134326,104330.0,104320.0,0.98405765]
[1748765813824,0.42175839,104330.0,104320.0,1.00202234]
[1748765813994,0.42175839,104330.0,104320.0,0.99304]
[1748765814198,0.42175839,104330.0,104320.0,1.0020222]
[1748765814404,0.42175839,104330.0,104320.0,1.00202192]
[1748765814903,0.42175839,104330.0,104320.0,1.00202177]
[1748765815772,0.42175839,104330.0,104320.0,1.00202171]
[1748765816192,0.41217361,104330.0,104320.0,1.00202171]
[1748765816768,0.41217361,104330.0,104320.0,1.0020215]
[1748765817752,0.40258892,104330.0,104320.0,1.00202142]
[1748765817960,0.39635981,104330.0,104320.0,1.34202142]
[1748765818173,0.40594441,104330.0,104320.0,1.34202142]
[1748765818582,0.40594441,104330.0,104320.0,1.34202048]
[1748765818786,0.40594441,104330.0,104320.0,1.34201958]
[1748765819005,0.40594441,104330.0,104320.0,1.01875236]
[1748765819229,0.41552919,104330.0,104320.0,1.32405614]
[1748765819435,0.39635981,104330.0,104320.0,1.34201769]
[1748765819653,0.39635981,104330.0,104320.0,0.69820986]
[1748765819869,0.3867754,104330.0,104320.0,1.34257745]
[1748765820092,0.39635981,104330.0,104320.0,1.34257745]
[1748765820322,0.40594441,104330.0,104320.0,1.34257745]
[1748765820549,0.3867754,104330.0,104320.0,1.34257576]
[1748765820766,0.39635981,104330.0,104320.0,1.34257576]
[1748765821309,0.40594441,104330.0,104320.0,1.34257576]
[1748765821723,0.39635981,104330.0,104320.0,1.34257576]
[1748765821946,0.39635981,104330.0,104320.0,1.32339576]
[1748765822146,0.40594441,104330.0,104320.0,1.3233943]
[1748765822566,0.40594441,104330.0,104320.0,1.0292343]
[1748765822785,0.6072286,104330.0,104320.0,0.68679809]
[1748765823127,0.59764446,104330.0,104320.0,0.6963837]
[1748765823394,0.59764446,104330.0,104320.0,1.00016911]
[1748765823586,0.59764446,104330.0,104320.0,0.98220978]
[1748765823791,0.59764446,104330.0,104320.0,0.98220968]
[1748765823993,0.59764446,104330.0,104320.0,0.98220975]
[1748765824677,0.59764446,104330.0,104320.0,0.98216975]
[1748765824892,0.59764446,104330.0,104320.0,0.98216988]
[1748765825110,0.59764446,104330.0,104320.0,0.99175521]
[1748765825318,0.59764446,104330.0,104320.0,0.98277556]
[1748765825525,0.59764446,104330.0,104320.0,0.99175523]
[1748765826182,0.59764446,104330.0,104320.0,0.98277556]
[1748765826387,0.41552992,104330.0,104320.0,1.31502024]
[1748765826781,0.41552992,104330.0,104320.0,1.31502022]
[1748765828624,0.41552992,104330.0,104320.0,1.31502021]
[1748765830128,0.41552992,104330.0,104320.0,1.30604046]
[1748765830333,0.41552992,104330.0,104320.0,1.31502027]
[1748765830936,0.40594505,104330.0,104320.0,1.31502027]
[1748765831626,0.40594505,104330.0,104320.0,1.31502038]
[1748765832199,0.40594505,104330.0,104320.0,1.32522046]
[1748765832587,0.40594505,104330.0,104320.0,1.33420045]
[1748765833221,0.40594505,104330.0,104320.0,1.33420052]
[1748765833434,0.39636027,104330.0,104320.0,1.33420052]
[1748765834044,0.39635981,104330.0,104320.0,1.33420052]
[1748765834243,0.40594441,104330.0,104320.0,1.33420052]
[1748765834625,0.4155291,104330.0,104320.0,1.33420052]
[1748765835032,0.40594441,104330.0,104320.0,1.33420052]
[1748765835563,0.40594414,104330.0,104320.0,1.33420052]
[1748765835786,0.41552892,104330.0,104320.0,1.04004049]
[1748765835991,0.41552892,104330.0,104320.0,1.33408057]
[1748765836640,0.42511379,104330.0,104320.0,1.33408057]
[1748765836846,0.41552892,104330.0,104320.0,1.01081512]
[1748765837067,0.40594414,104330.0,104320.0,1.01081512]
[1748765837283,0.41552892,104330.0,104320.0,1.32510046]
[1748765837465,0.41552883,104330.0,104320.0,1.01081521]
[1748765837704,0.42511434,104330.0,104320.0,1.33408066]
[1748765838565,0.42511434,104330.0,104320.0,1.33408077]
[1748765838752,0.42511434,104330.0,104320.0,1.33408081]
[1748765839212,0.42511434,104330.0,104320.0,1.33408088]
[1748765839432,0.41552947,104330.0,104320.0,1.33408088]
[1748765840030,0.40594469,104330.0,104320.0,1.33408088]
[1748765840300,0.41552947,104330.0,104320.0,1.33408099]
[1748765840934,0.41552947,104330.0,104320.0,1.33408105]
[1748765841164,0.41552947,104330.0,104320.0,1.33408111]
[1748765841776,0.41552947,104330.0,104320.0,1.32510046]
[1748765842105,0.43122947,104330.0,104320.0,1.33408125]
[1748765842635,0.44672947,104330.0,104320.0,1.33408125]
[1748765843071,0.44672947,104330.0,104320.0,1.33407988]
[1748765843529,0.63842962,104330.0,104320.0,0.13712928]
[1748765843733,0.71511472,104330.0,104320.0,0.12814982]
[1748765843941,0.71511472,104330.0,104320.0,0.13713192]
[1748765844477,0.74389772,104330.0,104320.0,0.13713192]
[1748765844882,0.74389772,104330.0,104320.0,0.13712464]
[1748765846163,0.7996806,104330.0,104320.0,0.13712464]
[1748765846888,0.7996806,104330.0,104320.0,0.11793639]
[1748765847022,0.74389772,104330.0,104320.0,0.11793637]
[1748765847230,0.72819772,104330.0,104320.0,0.11793637]
[1748765847487,0.72819772,104330.0,104320.0,0.11793636]
[1748765847687,0.71269772,104330.0,104320.0,0.11793636]
[1748765848579,0.71269772,104330.0,104320.0,0.10896982]
[1748765848803,0.71269772,104330.0,104320.0,0.11793188]
[1748765848951,0.71269772,104330.0,104320.0,0.11793169]
[1748765849353,0.71269772,104330.0,104320.0,0.1142462]
[1748765850662,0.71269772,104330.0,104320.0,0.11424452]
[1748765851096,0.71269772,104330.0,104320.0,0.11424359]
[1748765851503,0.71269772,104330.0,104320.0,0.11424358]
[1748765851946,0.71269772,104330.0,104320.0,0.114243]
[1748765852147,0.71269772,104330.0,104320.0,0.11424299]
[1748765852360,0.68391472,104330.0,104320.0,0.31554666]
[1748765852564,0.89264446,104330.0,104320.0,0.65798321]
[1748765852772,0.90226869,104330.0,104320.0,0.66756864]
[1748765852979,0.90226869,104330.0,104320.0,0.68548463]
[1748765853363,0.90226869,104330.0,104320.0,0.66756864]
[1748765853563,0.90226869,104330.0,104320.0,0.66756814]
[1748765853785,0.90226869,104330.0,104320.0,0.64067413]
[1748765854008,0.90218869,104330.0,104320.0,0.64067413]
[1748765854383,0.41552928,104330.0,104320.0,0.65025946]
[1748765854597,0.41552928,104330.0,104320.0,0.65025882]
[1748765854598,0.71044928,104330.0,104320.0,0.65025882]
[1748765854856,0.41552928,104330.0,104320.0,0.65025947]
[1748765855065,0.41552928,104330.0,104320.0,0.65025884]
[1748765855066,0.41552919,104330.0,104320.0,0.65025884]
[1748765855412,0.6072286,104330.0,104320.0,0.6406736]
[1748765855635,0.61681347,104330.0,104320.0,0.6406736]
[1748765856113,0.61681347,104330.0,104320.0,0.64067362]
[1748765856305,0.41552919,104330.0,104320.0,0.65025886]
[1748765856640,0.41552919,104330.0,104320.0,0.32699362]
[1748765856841,0.41552919,104330.0,104320.0,0.34617362]
[1748765857278,0.41552919,104330.0,104320.0,0.3461735]
[1748765857492,0.41552919,104330.0,104320.0,0.33721542]
[1748765857701,0.41552919,104330.0,104320.0,0.34617349]
[1748765857917,0.59764437,104330.0,104320.0,0.32700292]
[1748765858363,0.59764437,104330.0,104320.0,0.31804485]
[1748765858571,0.40594496,104330.0,104320.0,0.32700323]
[1748765858794,0.41552983,104330.0,104320.0,0.33658847]
[1748765859229,0.4251148,104330.0,104320.0,0.33658847]
[1748765859446,0.4251148,104330.0,104320.0,0.3174178]
[1748765859689,0.41553048,104330.0,104320.0,0.3174178]
[1748765859974,0.59764529,104330.0,104320.0,0.32355715]
[1748765860730,0.58806051,104330.0,104320.0,0.31397163]
[1748765860938,0.57847564,104330.0,104320.0,0.31397163]
[1748765861167,0.57847564,104330.0,104320.0,0.32355733]
[1748765861400,0.57847564,104330.0,104320.0,0.3145987]
[1748765861597,0.57847564,104330.0,104320.0,0.32355772]
[1748765862378,0.57847564,104330.0,104320.0,0.32355808]
[1748765863021,0.57847564,104330.0,104320.0,0.32355852]
[1748765863808,0.57847564,104330.0,104320.0,0.08812845]
[1748765864009,0.56889067,104330.0,104320.0,0.09708821]
[1748765864415,0.84781619,104330.0,104320.0,0.09708821]
[1748765864616,0.75530497,104330.0,104320.0,0.09708997]
[1748765864817,0.78408797,104330.0,104320.0,0.09708997]
[1748765865825,0.78408797,104330.0,104320.0,0.09095087]
[1748765866049,0.78408797,104330.0,104320.0,0.09095088]
[1748765866865,0.78408797,104330.0,104320.0,0.09095073]
[1748765868167,0.78408797,104330.0,104320.0,0.0909508]
[1748765868791,0.87659919,104330.0,104320.0,0.09095065]
[1748765869002,0.84781619,104330.0,104320.0,0.09095065]
[1748765869402,0.75530497,104330.0,104320.0,0.09095065]
[1748765870158,0.75530497,104330.0,104320.0,0.08198935]
[1748765870380,0.75530497,104330.0,104320.0,0.09095161]
[1748765871474,0.75530497,104330.0,104320.0,0.09095236]
[1748765871636,0.75530497,104330.0,104320.0,0.08198935]
[1748765871841,0.75530497,104330.0,104320.0,0.09095336]
[1748765873334,0.75530497,104330.0,104320.0,0.09095467]
[1748765873891,0.75530497,104330.0,104320.0,0.09095479]
[1748765875516,0.75530497,104330.0,104320.0,0.08198935]
[1748765875728,0.75530497,104330.0,104320.0,0.09095462]
[1748765876297,0.75530497,104330.0,104320.0,0.0909546]
[1748765876684,0.75530497,104330.0,104320.0,0.09095463]
[1748765877715,0.84296353,104330.0,104320.0,0.09095463]
[1748765878393,0.84296353,104330.0,104320.0,0.08198935]
[1748765878599,0.84296353,104330.0,104320.0,0.09095464]
[1748765879074,0.84296353,104330.0,104320.0,0.09095451]
[1748765879505,0.84296353,104330.0,104320.0,0.09095464]
[1748765880434,0.75530497,104330.0,104320.0,0.09095464]
[1748765881855,1.05046497,104330.0,104320.0,0.09095422]
[1748765882504,0.66474497,104330.0,104320.0,0.09095422]
[1748765882697,1.05078497,104330.0,104320.0,0.08198935]
[1748765882864,1.05078497,104330.0,104320.0,0.09095437]
[1748765883284,1.05078497,104330.0,104320.0,0.09095409]
[1748765883617,1.05078497,104330.0,104320.0,0.09095428]
[1748765883749,1.05078497,104330.0,104320.0,0.09095416]
[1748765884473,1.05078497,104330.0,104320.0,0.09095437]
[1748765885905,1.05078497,104330.0,104320.0,0.09095457]
[1748765886123,1.05078497,104330.0,104320.0,0.09095518]
[1748765886333,1.05078497,104330.0,104320.0,0.08198935]
[1748765886541,1.05078497,104330.0,104320.0,0.09095544]
[1748765886995,0.66474497,104330.0,104320.0,0.08198935]
[1748765887248,0.66939545,104330.0,104320.0,0.30184542]
[1748765887525,0.66939545,104330.0,104320.0,0.09095614]
[1748765887795,0.57847545,104330.0,104320.0,0.09095614]
[1748765888044,0.57847545,104330.0,104320.0,0.09095671]
[1748765888500,0.57847545,104330.0,104320.0,0.0909566]
[1748765888709,0.57847545,104330.0,104320.0,0.09095654]
[1748765888958,0.57847545,104330.0,104320.0,0.10889429]
[1748765889484,0.57847545,104330.0,104320.0,0.30061208]
[1748765889683,0.57847545,104330.0,104320.0,0.30061166]
[1748765889860,0.57847545,104330.0,104320.0,0.10889387]
[1748765890791,0.57847545,104330.0,104320.0,0.10889373]
[1748765891021,0.57847545,104330.0,104320.0,0.09095752]
[1748765891266,0.57847545,104330.0,104320.0,0.10889579]
[1748765891527,0.57847545,104330.0,104320.0,0.10889662]
[1748765891770,0.57847545,104330.0,104320.0,0.11848586]
[1748765892380,0.57847545,104330.0,104320.0,0.09157523]
[1748765892598,0.57847545,104330.0,104320.0,0.11848589]
[1748765893056,0.57847545,104330.0,104320.0,0.11848706]
[1748765893282,0.57847545,104330.0,104320.0,0.1184894]
[1748765893706,0.57847545,104330.0,104320.0,0.10890352]
[1748765893928,0.57847545,104330.0,104320.0,0.0640131]
[1748765894386,0.57847545,104330.0,104320.0,0.06401539]
[1748765895030,0.57847545,104330.0,104320.0,0.06401644]
[1748765895493,0.57847545,104330.0,104320.0,0.06401648]
[1748765896501,0.57847545,104330.0,104320.0,0.06401434]
[1748765896942,0.57847545,104330.0,104320.0,0.06401395]
[1748765897892,0.57847545,104330.0,104320.0,0.06401331]
[1748765898136,0.57847545,104330.0,104320.0,0.06401302]
[1748765898493,0.57847545,104330.0,104320.0,0.06401287]
[1748765898694,0.57847545,104330.0,104320.0,0.05504198]
[1748765898908,0.57847545,104330.0,104320.0,0.06401279]
[1748765899731,0.57847545,104330.0,104320.0,0.0370999]
[1748765899960,0.57847545,104330.0,104320.0,0.06401191]
[1748765900927,0.96435545,104330.0,104320.0,0.07359771]
[1748765901129,0.96435545,104330.0,104320.0,0.07359756]
[1748765901336,0.96435545,104330.0,104320.0,0.27490114]
[1748765901520,0.96435545,104330.0,104320.0,0.28448673]
[1748765902082,0.96435545,104330.0,104320.0,0.27551614]
[1748765902289,0.96435545,104330.0,104320.0,0.28448666]
[1748765902867,0.96435545,104330.0,104320.0,0.28448669]
[1748765903076,0.96435545,104330.0,104320.0,0.28448671]
[1748765903471,0.96435545,104330.0,104320.0,0.2844867]
[1748765903808,0.96435545,104330.0,104320.0,0.28448683]
[1748765904031,0.95477067,104330.0,104320.0,0.07359755]
[1748765904598,0.95477067,104330.0,104320.0,0.07359766]
[1748765905293,0.95477067,104330.0,104320.0,0.26531545]
[1748765905507,0.95477067,104330.0,104320.0,0.27490115]
[1748765905718,0.95477067,104330.0,104320.0,0.27490147]
[1748765906146,0.95477067,104330.0,104320.0,0.26531577]
[1748765907137,0.95477067,104330.0,104320.0,0.0640121]
[1748765907349,0.95477067,104330.0,104320.0,0.06401401]
[1748765908316,0.95477067,104330.0,104320.0,0.0370999]
[1748765908509,0.95477067,104330.0,104320.0,0.06401531]
[1748765908707,0.56889067,104330.0,104320.0,0.06401531]
[1748765908917,0.95453067,104330.0,104320.0,0.06401569]
[1748765909089,0.95453067,104330.0,104320.0,0.06401648]
[1748765909410,0.95453067,104330.0,104320.0,0.06401687]
[1748765909834,0.95453067,104330.0,104320.0,0.06401734]
[1748765910447,0.95453067,104330.0,104320.0,0.0640183]
[1748765911008,0.95453067,104330.0,104320.0,0.06401981]
[1748765911215,0.95453067,104330.0,104320.0,0.06402064]
[1748765912242,0.95453067,104330.0,104320.0,0.06402084]
[1748765912473,0.95453067,104330.0,104320.0,0.06402154]
[1748765912767,0.95453067,104330.0,104320.0,0.06402246]
[1748765913499,0.95453067,104330.0,104320.0,0.06402363]
[1748765913699,0.95453067,104330.0,104320.0,0.0640275]
[1748765913907,0.95453067,104330.0,104320.0,0.05506425]
[1748765914406,0.95453067,104330.0,104320.0,0.05506568]
[1748765915178,0.95453067,104330.0,104320.0,0.05506569]
[1748765915352,0.95453067,104330.0,104320.0,0.03711396]
[1748765915561,0.95453067,104330.0,104320.0,0.03711581]
[1748765915777,0.96983067,104330.0,104320.0,0.05507423]
[1748765916005,0.98593067,104330.0,104320.0,0.05507446]
[1748765916651,0.98593067,104330.0,104320.0,0.05508518]
[1748765917445,0.98593067,104330.0,104320.0,0.05508646]
[1748765918593,0.98593067,104330.0,104320.0,0.0550866]
[1748765919137,0.98593067,104330.0,104320.0,0.05508946]
[1748765920448,0.98593067,104330.0,104320.0,0.04610519]
[1748765920723,0.98593067,104330.0,104320.0,0.05508935]
[1748765921044,0.98593067,104330.0,104320.0,0.38212444]
[1748765921462,0.98593067,104330.0,104320.0,0.05876197]
[1748765921879,0.98593067,104330.0,104320.0,0.03180927]
[1748765922096,0.98593067,104330.0,104320.0,0.0587619]
[1748765923748,0.98593067,104330.0,104320.0,0.05876185]
[1748765923913,0.98593067,104330.0,104320.0,0.0498052]
[1748765924755,0.98593067,104330.0,104320.0,0.04980519]
[1748765925114,0.98593067,104330.0,104320.0,0.02285262]
[1748765925315,0.98593067,104330.0,104320.0,0.0498052]
[1748765925526,0.98593067,104330.0,104320.0,0.04082101]
[1748765925734,0.98593067,104330.0,104320.0,0.04980519]
[1748765926199,0.98593067,104330.0,104320.0,0.04980514]
[1748765926420,0.95453067,104330.0,104320.0,0.04980514]
[1748765926610,0.95453067,104330.0,104320.0,0.04082096]
[1748765926828,0.95453067,104330.0,104320.0,0.04980513]
[1748765927929,0.95453067,104330.0,104320.0,0.04082096]
[1748765928155,0.95453067,104330.0,104320.0,0.04980513]
[1748765929048,0.95453067,104330.0,104320.0,0.04082096]
[1748765929293,0.95453067,104330.0,104320.0,0.05939101]
[1748765930304,0.95453067,104330.0,104320.0,0.05939092]
[1748765930494,0.95453067,104330.0,104320.0,0.05939089]
[1748765931407,0.95453067,104330.0,104320.0,0.05939092]
[1748765932245,0.95453067,104330.0,104320.0,0.0324385]
[1748765932464,0.95453067,104330.0,104320.0,0.05939087]
[1748765932673,0.95453067,104330.0,104320.0,0.04142262]
[1748765932883,0.95453067,104330.0,104320.0,0.05939091]
[1748765933100,0.95453067,104330.0,104320.0,0.059391]
[1748765934618,0.95453067,104330.0,104320.0,0.05939117]
[1748765934845,0.95453067,104330.0,104320.0,0.04980537]
[1748765935676,0.95453067,104330.0,104320.0,0.02285262]
[1748765935897,0.95453067,104330.0,104320.0,0.04980552]
[1748765936294,0.95453067,104330.0,104320.0,0.04980555]
[1748765936575,0.95453067,104330.0,104320.0,0.25110913]
[1748765936779,0.95453067,104330.0,104320.0,0.59364233]
[1748765936780,0.39636064,104330.0,104320.0,0.59364233]
[1748765936985,0.90118934,104330.0,104320.0,0.58405709]
[1748765938043,0.90118934,104330.0,104320.0,0.57507279]
[1748765938246,0.89160502,104330.0,104320.0,0.58405686]
[1748765938434,0.89160502,104330.0,104320.0,0.58405644]
[1748765939005,0.88202042,104330.0,104320.0,0.58405644]
[1748765939281,0.88202042,104330.0,104320.0,0.5840561]
[1748765939484,0.86285067,104330.0,104320.0,0.25110811]
[1748765939681,0.86285067,104330.0,104320.0,0.25110703]
[1748765940560,0.86285067,104330.0,104320.0,0.26069273]
[1748765940988,0.86285067,104330.0,104320.0,0.2511068]
[1748765941665,0.86285067,104330.0,104320.0,0.26069253]
[1748765941896,0.86285067,104330.0,104320.0,0.26069227]
[1748765942112,0.86285067,104330.0,104320.0,0.26069216]
[1748765942541,0.86285067,104330.0,104320.0,0.26069201]
[1748765942815,0.86285067,104330.0,104320.0,0.26069171]
[1748765943462,0.86285067,104330.0,104320.0,0.26069169]
[1748765943681,0.86285067,104330.0,104320.0,0.25110596]
[1748765943877,0.87825067,104330.0,104320.0,0.26069166]
[1748765944045,0.89445067,104330.0,104320.0,0.26069166]
[1748765944238,0.89445067,104330.0,104320.0,0.24272515]
[1748765944441,0.89445067,104330.0,104320.0,0.26069147]
[1748765945369,0.89445067,104330.0,104320.0,0.27027708]
[1748765945598,0.89445067,104330.0,104320.0,0.27087935]
[1748765945815,0.90403554,104330.0,104320.0,0.28944778]
[1748765946026,0.90403554,104330.0,104320.0,0.27986235]
[1748765946237,0.90403554,104330.0,104320.0,0.27986198]
[1748765946462,0.90403554,104330.0,104320.0,0.261896]
[1748765946715,0.90403554,104330.0,104320.0,0.27986198]
[1748765947754,0.90403554,104330.0,104320.0,0.261896]
[1748765948085,0.90403554,104330.0,104320.0,0.27986164]